bitfinex/quotes_BTCUSD_20250515
["timestamp","ask_amount","ask_price","bid_price","bid_amount"]
[1747331134086,0.00304797,104150.0,104140.0,1.0936238]
[1747331136574,0.00304797,104150.0,104140.0,1.0836238]
[1747331136779,0.00304797,104150.0,104140.0,0.6977038]
[1747331137009,0.00304797,104150.0,104140.0,1.0576238]
[1747331137211,0.00304797,104150.0,104140.0,1.0745838]
[1747331137883,0.00032797,104150.0,104140.0,1.0745838]
[1747331138813,0.01952983,104150.0,104140.0,0.323563]
[1747331138951,0.06363081,104150.0,104140.0,0.33316481]
[1747331139360,0.07323216,104150.0,104140.0,0.33316481]
[1747331139786,0.26526288,104150.0,104140.0,0.31396092]
[1747331140037,0.58606111,104150.0,104140.0,0.1043094]
[1747331140239,0.58573314,104150.0,104140.0,0.1023094]
[1747331140436,0.58573314,104150.0,104140.0,0.1063094]
[1747331141014,0.58573314,104150.0,104140.0,0.0973094]
[1747331141224,0.58573314,104150.0,104140.0,0.1003094]
[1747331141430,0.58573314,104150.0,104140.0,0.1033094]
[1747331142057,0.59533467,104150.0,104140.0,0.31456282]
[1747331142746,0.5857336,104150.0,104140.0,0.31456301]
[1747331142951,0.5857336,104150.0,104140.0,0.32416509]
[1747331143130,0.5857336,104150.0,104140.0,0.31456301]
[1747331144445,0.5857336,104150.0,104140.0,0.3337669]
[1747331144653,0.5857336,104150.0,104140.0,0.32416509]
[1747331144857,0.5857336,104150.0,104140.0,0.33376699]
[1747331145053,0.5857336,104150.0,104140.0,0.32416509]
[1747331145257,0.59533458,104150.0,104140.0,0.33376699]
[1747331145455,0.59533458,104150.0,104140.0,0.32416509]
[1747331145655,0.40330386,104150.0,104140.0,0.3337669]
[1747331145805,0.60493518,104150.0,104140.0,0.3337669]
[1747331146003,0.60493592,104150.0,104140.0,0.32416509]
[1747331146208,0.60493592,104150.0,104140.0,0.33376708]
[1747331146627,0.4129052,104150.0,104140.0,0.34336898]
[1747331146828,0.60493592,104150.0,104140.0,0.34336898]
[1747331147899,0.25533485,104150.0,104140.0,0.33376708]
[1747331148234,0.58573369,104150.0,104140.0,0.29535856]
[1747331148432,0.57613225,104150.0,104140.0,0.30496092]
[1747331148637,0.56653072,104150.0,104140.0,0.29535856]
[1747331148851,0.56653072,104150.0,104140.0,0.30496092]
[1747331149098,0.56653072,104150.0,104140.0,0.31456319]
[1747331149302,0.57613207,104150.0,104140.0,0.32416518]
[1747331149510,0.58573314,104150.0,104140.0,0.32416518]
[1747331149693,0.38410079,104150.0,104140.0,0.33376727]
[1747331149990,0.60493518,104150.0,104140.0,0.33376745]
[1747331150198,0.60493518,104150.0,104140.0,0.34336898]
[1747331150397,0.40330302,104150.0,104140.0,0.34336852]
[1747331150621,0.41290437,104150.0,104140.0,0.34336852]
[1747331150896,0.61453727,104150.0,104140.0,0.33376671]
[1747331151373,0.61453727,104150.0,104140.0,0.34336852]
[1747331151544,0.40330358,104150.0,104140.0,0.34336852]
[1747331151744,0.3841007,104150.0,104140.0,0.34336852]
[1747331151948,0.01920168,104150.0,104140.0,0.67536666]
[1747331152145,0.02880284,104150.0,104140.0,0.67536666]
[1747331152287,0.04650284,104150.0,104140.0,0.67536666]
[1747331152493,0.04650284,104150.0,104140.0,0.34336852]
[1747331152917,0.0273007,104150.0,104140.0,0.34336852]
[1747331153116,0.0096007,104150.0,104140.0,0.34336852]
[1747331153313,0.03709993,104160.0,104150.0,0.22083421]
[1747331153516,0.0179,104160.0,104150.0,0.65014175]
[1747331153933,0.61649044,104170.0,104160.0,0.22081319]
[1747331154140,0.58769304,104170.0,104160.0,0.28932168]
[1747331154341,0.58769304,104170.0,104160.0,0.2989222]
[1747331154548,0.57809354,104170.0,104160.0,0.28932168]
[1747331154780,0.57809354,104170.0,104160.0,0.0973094]
[1747331156064,0.56849385,104170.0,104160.0,0.0973094]
[1747331156286,0.24551322,104160.0,104150.0,0.20163216]
[1747331156511,0.24551322,104160.0,104150.0,0.30854291]
[1747331157167,0.24551322,104160.0,104150.0,0.31814416]
[1747331157573,0.24551322,104160.0,104150.0,0.29134012]
[1747331157776,0.43431322,104160.0,104150.0,0.31054309]
[1747331157888,0.43431322,104160.0,104150.0,0.32014444]
[1747331158712,0.43431322,104160.0,104150.0,0.30094165]
[1747331159167,0.42471289,104160.0,104150.0,0.30094165]
[1747331159847,0.42471289,104160.0,104150.0,0.10891093]
[1747331159979,0.42471289,104160.0,104150.0,0.0993094]
[1747331160179,0.42471289,104160.0,104150.0,0.29134012]
[1747331160396,0.42471289,104160.0,104150.0,0.0993094]
[1747331160600,0.76471289,104160.0,104150.0,0.002]
[1747331162026,0.95363289,104160.0,104150.0,0.002]
[1747331163889,0.95363289,104160.0,104150.0,0.19403072]
[1747331164170,0.95363289,104160.0,104150.0,0.002]
[1747331165837,0.94403228,104160.0,104150.0,0.002]
[1747331166047,0.94403228,104160.0,104150.0,0.20363216]
[1747331167014,0.94403228,104160.0,104150.0,0.19403072]
[1747331167628,0.94403228,104160.0,104150.0,0.002]
[1747331167838,0.94403228,104160.0,104150.0,0.19403072]
[1747331168546,0.94403228,104160.0,104150.0,0.20363225]
[1747331169049,0.94403228,104160.0,104150.0,0.19403072]
[1747331170148,0.94403228,104160.0,104150.0,0.20363225]
[1747331171540,0.94403228,104160.0,104150.0,0.002]
[1747331171965,0.94403228,104160.0,104150.0,0.19403072]
[1747331172510,0.94403228,104160.0,104150.0,0.20363225]
[1747331173362,0.57591234,104160.0,104150.0,0.22283504]
[1747331173564,0.94459571,104160.0,104150.0,0.23243629]
[1747331173780,0.38390006,104160.0,104150.0,0.53795933]
[1747331173998,0.3589,104170.0,104160.0,0.220813]
[1747331174240,0.02119799,104170.0,104160.0,0.53593729]
[1747331174420,0.23239057,104170.0,104160.0,0.30852244]
[1747331174652,0.38999632,104170.0,104160.0,0.32772265]
[1747331175068,0.38999632,104170.0,104160.0,0.31812259]
[1747331175275,0.39936901,104170.0,104160.0,0.31812259]
[1747331175521,0.58176373,104170.0,104160.0,0.30852244]
[1747331175729,0.5721645,104170.0,104160.0,0.30852244]
[1747331175949,0.5711645,104170.0,104160.0,0.30852244]
[1747331176159,0.5711645,104170.0,104160.0,0.31152244]
[1747331176566,0.5711645,104170.0,104160.0,0.31152253]
[1747331177647,0.561565,104170.0,104160.0,0.3019222]
[1747331177877,0.5519654,104170.0,104160.0,0.3019222]
[1747331178108,0.5519654,104170.0,104160.0,0.31152253]
[1747331178520,0.5519654,104170.0,104160.0,0.31452253]
[1747331179610,0.5858654,104170.0,104160.0,0.31452263]
[1747331179820,0.5858654,104170.0,104160.0,0.32412296]
[1747331179967,0.5858654,104170.0,104160.0,0.006]
[1747331180151,0.91767094,104170.0,104160.0,0.006]
[1747331180618,0.5858654,104170.0,104160.0,0.006]
[1747331180811,0.90929908,104170.0,104160.0,0.006]
[1747331181423,0.90929908,104170.0,104140.0,0.2208549]
[1747331181424,0.23043518,104150.0,104140.0,0.2208549]
[1747331181577,0.23043518,104150.0,104140.0,0.32776638]
[1747331181774,0.23043518,104150.0,104140.0,0.33736837]
[1747331182420,0.22083448,104150.0,104140.0,0.3181643]
[1747331182623,0.23723448,104150.0,104140.0,0.33736856]
[1747331182794,0.23723448,104150.0,104140.0,0.34536856]
[1747331184218,0.21803225,104150.0,104140.0,0.1053094]
[1747331184443,0.23603225,104150.0,104140.0,0.1053094]
[1747331185132,0.57603225,104150.0,104140.0,0.1053094]
[1747331185341,0.57603225,104150.0,104140.0,0.29735856]
[1747331185553,0.56643072,104150.0,104140.0,0.1013094]
[1747331185801,0.56643072,104150.0,104140.0,0.0993094]
[1747331186029,0.56643072,104150.0,104140.0,0.1023094]
[1747331187392,0.56643072,104150.0,104140.0,0.29435856]
[1747331187605,0.56083467,104150.0,104140.0,0.30396092]
[1747331187818,0.56083467,104150.0,104140.0,0.323165]
[1747331187819,0.36880395,104150.0,104140.0,0.323165]
[1747331188042,0.56083467,104150.0,104140.0,0.3135631]
[1747331188250,0.35920186,104150.0,104140.0,0.33276699]
[1747331188461,0.35920186,104150.0,104140.0,0.34956699]
[1747331188692,0.35920186,104150.0,104140.0,0.68137253]
[1747331188900,0.36880321,104150.0,104140.0,0.68137253]
[1747331189530,0.36880321,104150.0,104140.0,0.34956699]
[1747331189786,0.2077202,104160.0,104150.0,0.21123332]
[1747331189992,0.39973304,104160.0,104150.0,0.0973094]
[1747331190202,0.43523304,104160.0,104150.0,0.29894165]
[1747331190361,0.43523304,104160.0,104140.0,0.20665161]
[1747331190362,0.21943207,104150.0,104140.0,0.20665161]
[1747331190559,0.22903332,104150.0,104140.0,0.32316545]
[1747331190765,0.21123332,104150.0,104140.0,0.33076744]
[1747331191217,0.21123332,104150.0,104140.0,0.33736925]
[1747331191218,0.00960098,104150.0,104140.0,0.33736925]
[1747331191426,0.00960098,104150.0,104140.0,0.70397479]
[1747331191427,0.0288034,104150.0,104140.0,0.70397479]
[1747331191731,0.0288034,104150.0,104140.0,0.70597479]
[1747331192078,0.0288034,104150.0,104140.0,0.37716925]
[1747331192850,0.0384041,104150.0,104140.0,0.37716925]
[1747331194002,0.24003709,104150.0,104140.0,0.33276744]
[1747331194298,0.24003709,104150.0,104140.0,0.34236934]
[1747331194503,0.23043611,104150.0,104140.0,0.32316545]
[1747331194743,0.23043611,104150.0,104140.0,0.33284598]
[1747331195472,0.21893225,104150.0,104140.0,0.1023094]
[1747331195625,0.23703225,104150.0,104140.0,0.1023094]
[1747331196029,0.57703225,104150.0,104140.0,0.1023094]
[1747331196411,0.76551225,104150.0,104140.0,0.1023094]
[1747331197058,1.09731779,104150.0,104140.0,0.005]
[1747331197296,0.76551225,104150.0,104140.0,0.005]
[1747331197505,0.90883779,104150.0,104140.0,0.005]
[1747331197827,1.36374391,104150.0,104140.0,0.005]
[1747331198354,1.37335325,104150.0,104140.0,0.005]
[1747331198564,1.37335325,104150.0,104140.0,0.003]
[1747331199122,0.5871737,104130.0,104120.0,0.002]
[1747331199270,0.9641337,104130.0,104120.0,0.00204797]
[1747331200830,0.5512737,104130.0,104120.0,0.20373832]
[1747331201032,0.9282737,104130.0,104120.0,0.21534253]
[1747331201246,0.9282737,104130.0,104120.0,0.21834253]
[1747331201446,0.9282737,104130.0,104120.0,0.6734614]
[1747331201599,0.55127407,104130.0,104120.0,0.30604772]
[1747331202223,0.55127407,104130.0,104120.0,0.31565193]
[1747331203100,0.55127407,104130.0,104120.0,0.32525604]
[1747331203301,0.55127407,104130.0,104120.0,0.33486006]
[1747331203533,0.56087745,104130.0,104120.0,0.3444639]
[1747331203738,0.56087745,104130.0,104120.0,0.32525604]
[1747331205254,0.56087745,104130.0,104120.0,0.33486006]
[1747331205461,0.56087745,104130.0,104120.0,0.34446399]
[1747331205672,0.74935745,104130.0,104120.0,0.34446399]
[1747331205811,0.74935745,104130.0,104120.0,0.34446353]
[1747331206020,0.00960291,104130.0,104120.0,0.36136297]
[1747331206224,0.01920537,104130.0,104120.0,0.36965831]
[1747331206435,0.02880828,104130.0,104120.0,0.36965831]
[1747331208513,0.00960208,104140.0,104130.0,0.2208769]
[1747331208728,0.22085541,104140.0,104130.0,0.89469968]
[1747331208916,0.22085541,104140.0,104130.0,0.87679968]
[1747331209133,0.22085541,104140.0,104130.0,0.88640269]
[1747331209919,0.22085541,104140.0,104130.0,0.8960056]
[1747331210121,0.22085541,104140.0,104130.0,0.90660833]
[1747331210485,0.25505541,104140.0,104130.0,0.6665256]
[1747331210633,0.2454536,104140.0,104130.0,0.5702162]
[1747331212369,0.5854536,104140.0,104130.0,0.5702162]
[1747331217877,0.91725914,104140.0,104130.0,0.5702162]
[1747331218720,0.5854536,104140.0,104130.0,0.5702162]
[1747331220931,0.5854536,104140.0,104130.0,0.002]
[1747331221131,0.60012309,104140.0,104130.0,0.002]
[1747331224568,0.5512536,104140.0,104130.0,0.21327408]
[1747331224795,0.91853152,104140.0,104130.0,0.002]
[1747331224973,0.54165152,104140.0,104130.0,0.002]
[1747331225315,0.95263152,104140.0,104130.0,0.002]
[1747331226814,0.95247152,104140.0,104130.0,0.002]
[1747331229438,0.93547152,104140.0,104130.0,0.002]
[1747331229609,0.91837152,104140.0,104130.0,0.002]
[1747331229762,0.54165152,104140.0,104130.0,0.1940676]
[1747331230124,0.91833152,104140.0,104130.0,0.20367079]
[1747331230320,0.91833152,104140.0,104130.0,0.20367088]
[1747331231120,0.91833152,104140.0,104130.0,0.22007088]
[1747331232308,0.34960208,104140.0,104130.0,0.3368862]
[1747331232497,0.94713768,104140.0,104130.0,0.3368862]
[1747331232919,0.54756389,104140.0,104130.0,0.34648893]
[1747331233100,0.55716616,104140.0,104130.0,0.36348893]
[1747331234052,0.75881768,104140.0,104130.0,0.33688639]
[1747331235344,0.56676852,104140.0,104130.0,0.33688639]
[1747331235544,0.56676852,104140.0,104130.0,0.34648912]
[1747331235746,0.92787332,104150.0,104140.0,0.20165152]
[1747331235948,0.91827207,104150.0,104140.0,0.20165152]
[1747331236685,0.90867072,104150.0,104130.0,0.65908791]
[1747331236892,0.92517072,104150.0,104130.0,0.32628237]
[1747331237337,0.00960218,104140.0,104130.0,0.33588492]
[1747331237520,0.00960162,104140.0,104130.0,0.33588492]
[1747331237754,0.02880597,104140.0,104130.0,0.35368492]
[1747331237876,0.0288056,104140.0,104130.0,0.35268492]
[1747331238300,0.0288056,104140.0,104130.0,0.35368492]
[1747331238507,0.03840787,104140.0,104130.0,0.35368492]
[1747331238709,0.0288056,104140.0,104130.0,0.35468492]
[1747331238929,0.03840787,104140.0,104130.0,0.35468492]
[1747331239634,0.03840787,104140.0,104130.0,0.34508237]
[1747331239841,0.03840787,104140.0,104130.0,0.32728237]
[1747331240002,0.03840787,104140.0,104130.0,0.32528237]
[1747331240341,0.0288056,104140.0,104130.0,0.32528237]
[1747331240544,0.03840787,104140.0,104130.0,0.34448237]
[1747331240747,0.0288056,104140.0,104130.0,0.34448237]
[1747331240950,0.01920352,104140.0,104130.0,0.34748237]
[1747331241133,0.01920352,104140.0,104130.0,0.67928791]
[1747331241307,0.02880551,104140.0,104130.0,0.56531978]
[1747331241545,0.04800996,104140.0,104130.0,0.56531978]
[1747331241909,0.03840769,104140.0,104130.0,0.56531978]
[1747331242315,0.04800996,104140.0,104130.0,0.56531978]
[1747331242736,0.02880551,104140.0,104130.0,0.56531978]
[1747331242935,0.03840778,104140.0,104130.0,0.56531978]
[1747331243604,0.04801014,104140.0,104130.0,0.54811978]
[1747331243728,0.03840778,104140.0,104130.0,0.54811978]
[1747331244123,0.03840778,104140.0,104130.0,0.33028237]
[1747331244764,0.02880551,104140.0,104130.0,0.33028237]
[1747331244972,0.03840778,104140.0,104130.0,0.34718237]
[1747331245489,0.03840778,104140.0,104130.0,0.33028237]
[1747331246465,0.03840778,104140.0,104130.0,0.54811978]
[1747331247055,0.2400593,104140.0,104130.0,0.54811978]
[1747331247995,0.2400593,104140.0,104130.0,0.33028237]
[1747331248781,0.04801014,104140.0,104130.0,0.33028237]
[1747331254460,0.04801014,104140.0,104130.0,0.53141978]
[1747331254696,0.2400593,104140.0,104130.0,0.53142015]
[1747331255649,0.24006013,104140.0,104130.0,0.53142015]
[1747331258184,0.23045823,104140.0,104130.0,0.5314207]
[1747331258399,0.23795624,104140.0,104130.0,0.31358329]
[1747331258604,0.23795624,104140.0,104130.0,0.3231862]
[1747331259925,0.21125379,104140.0,104130.0,0.33278893]
[1747331260070,0.22085624,104140.0,104130.0,0.33278893]
[1747331260404,0.22085624,104140.0,104130.0,0.3231862]
[1747331261041,0.22085624,104140.0,104130.0,0.31358329]
[1747331261216,0.23585161,104140.0,104130.0,0.1023094]
[1747331261416,0.42397161,104140.0,104130.0,0.30398028]
[1747331261833,0.42397161,104140.0,104130.0,0.31358347]
[1747331264489,0.42397161,104140.0,104130.0,0.005]
[1747331264490,0.41436916,104140.0,104130.0,0.005]
[1747331265531,0.75436916,104140.0,104130.0,0.005]
[1747331266133,0.97220657,104140.0,104130.0,0.005]
[1747331266376,0.75436916,104140.0,104130.0,0.005]
[1747331267152,0.23527079,104130.0,104120.0,0.00204797]
[1747331267338,0.23527079,104130.0,104120.0,0.09935737]
[1747331268858,0.23527079,104130.0,104120.0,0.10135737]
[1747331269587,0.42339079,104130.0,104120.0,0.10135737]
[1747331269989,0.42339079,104130.0,104120.0,0.10435737]
[1747331270735,0.42339079,104130.0,104120.0,0.00704797]
[1747331270736,0.76339079,104130.0,104120.0,0.00704797]
[1747331270942,0.9812282,104130.0,104120.0,0.00704797]
[1747331271363,1.0785376,104130.0,104120.0,0.00704797]
[1747331271848,1.0785376,104130.0,104120.0,0.00504797]
[1747331272433,1.4933776,104130.0,104120.0,0.00504797]
[1747331272698,1.27554019,104130.0,104120.0,0.00204797]
[1747331272884,1.4943776,104130.0,104120.0,0.00204797]
[1747331273090,1.4943776,104130.0,104120.0,0.00304797]
[1747331273291,1.4943776,104130.0,104120.0,0.00204797]
[1747331273654,1.4953776,104130.0,104120.0,0.00204797]
[1747331274058,0.99211079,104130.0,104120.0,0.00204797]
[1747331274474,1.36831079,104130.0,104120.0,0.00204797]
[1747331275509,1.18027079,104130.0,104120.0,0.00204797]
[1747331275713,1.36831079,104130.0,104120.0,0.00204797]
[1747331278592,2.06151079,104130.0,104120.0,0.00204797]
[1747331279884,2.2793482,104130.0,104120.0,0.00204797]
[1747331280282,1.4883082,104130.0,104120.0,0.00204797]
[1747331280631,1.8645082,104130.0,104120.0,0.00204797]
[1747331285279,1.64667079,104130.0,104120.0,0.00204797]
[1747331285477,1.8645082,104130.0,104120.0,0.00204797]
[1747331289390,2.08234561,104130.0,104120.0,0.00204797]
[1747331289613,6.55099586,104130.0,104120.0,0.00204797]
[1747331289817,6.56099586,104130.0,104120.0,0.00204797]
[1747331290840,6.34315845,104130.0,104120.0,0.00204797]
[1747331293387,6.56099586,104130.0,104120.0,0.00204797]
[1747331293590,6.71670526,104130.0,104120.0,0.00204797]
[1747331293997,6.7436121,104130.0,104120.0,0.00204797]
[1747331294195,6.7524491,104130.0,104120.0,0.00204797]
[1747331295304,6.7514491,104130.0,104120.0,0.00204797]
[1747331295719,6.9815104,104130.0,104120.0,0.00204797]
[1747331296006,6.9815104,104130.0,104100.0,0.002]
[1747331296007,0.02,104120.0,104100.0,0.002]
[1747331296172,1.84155261,104110.0,104100.0,0.00204797]
[1747331296381,6.89155261,104110.0,104100.0,0.00204797]
[1747331296620,6.91846007,104110.0,104100.0,0.00204797]
[1747331297348,6.89155261,104110.0,104100.0,0.00204797]
[1747331297624,6.98886201,104110.0,104100.0,0.00204797]
[1747331297929,7.33813532,104110.0,104100.0,0.00204797]
[1747331298244,7.32813532,104110.0,104100.0,0.00204797]
[1747331298904,7.31813532,104110.0,104100.0,0.00204797]
[1747331299255,7.32013532,104110.0,104100.0,0.00204797]
[1747331299453,7.32113532,104110.0,104100.0,0.00204797]
[1747331299964,7.32974036,104110.0,104100.0,0.00204797]
[1747331300193,7.33374036,104110.0,104100.0,0.00204797]
[1747331300930,7.34322151,104110.0,104100.0,0.00204797]
[1747331301501,7.24591211,104110.0,104100.0,0.00204797]
[1747331307286,0.59979574,104090.0,104080.0,0.0015905]
[1747331307610,1.4054732,104090.0,104080.0,0.00207058]
[1747331308816,1.4064732,104090.0,104080.0,0.00207058]
[1747331310339,1.07410514,104090.0,104080.0,0.00207058]
[1747331310573,1.4064732,104090.0,104080.0,0.00207058]
[1747331310822,1.5037826,104090.0,104080.0,0.00207058]
[1747331312067,6.5537826,104090.0,104080.0,0.00207058]
[1747331315423,6.4564732,104090.0,104080.0,0.00207058]
[1747331316045,6.4392732,104090.0,104080.0,0.00207058]
[1747331316375,6.42473235,104090.0,104080.0,0.00207058]
[1747331316751,6.04873235,104090.0,104080.0,0.00207058]
[1747331316964,6.44287235,104090.0,104080.0,0.00207058]
[1747331317159,6.54018175,104090.0,104080.0,0.00207058]
[1747331317559,6.42600875,104090.0,104080.0,0.00207058]
[1747331317979,6.32869935,104090.0,104080.0,0.00207058]
[1747331318745,6.31059935,104090.0,104080.0,0.00207058]
[1747331319369,1.24369935,104090.0,104080.0,0.00207058]
[1747331319687,1.24369935,104090.0,104080.0,0.01947058]
[1747331319866,1.24369935,104090.0,104080.0,0.00207058]
[1747331320030,1.34479935,104090.0,104080.0,0.00207058]
[1747331320210,1.34100875,104090.0,104080.0,0.00207058]
[1747331322486,1.34100875,104090.0,104080.0,0.01987058]
[1747331323039,1.34100875,104090.0,104080.0,0.00207058]
[1747331323644,1.75612875,104090.0,104080.0,0.00207058]
[1747331324634,1.67521935,104090.0,104080.0,0.00207058]
[1747331324861,6.74291935,104090.0,104080.0,0.00207058]
[1747331325062,6.96111441,104090.0,104080.0,0.00207058]
[1747331325280,6.9880466,104090.0,104080.0,0.00207058]
[1747331325925,6.76985154,104090.0,104080.0,0.00207058]
[1747331326317,6.86716094,104090.0,104080.0,0.00207058]
[1747331327992,7.32809191,104090.0,104080.0,0.00207058]
[1747331328162,7.42919191,104090.0,104080.0,0.00207058]
[1747331328362,7.21099685,104090.0,104080.0,0.00207058]
[1747331328845,7.20999685,104090.0,104080.0,0.00207058]
[1747331329068,6.64574745,104090.0,104080.0,0.00207058]
[1747331329333,7.02454745,104090.0,104080.0,0.00207058]
[1747331329713,7.02354745,104090.0,104080.0,0.00207058]
[1747331329890,6.64974745,104090.0,104080.0,0.00207058]
[1747331330094,7.02554745,104090.0,104080.0,0.00207058]
[1747331330297,7.12285685,104090.0,104080.0,0.00207058]
[1747331334226,7.02554745,104090.0,104080.0,0.00207058]
[1747331339025,5.99643239,104090.0,104080.0,0.00207058]
[1747331339221,6.76329239,104090.0,104080.0,0.00207058]
[1747331339599,6.56545239,104090.0,104080.0,0.00207058]
[1747331339803,6.75329239,104090.0,104080.0,0.00207058]
[1747331340444,6.73875154,104090.0,104080.0,0.02017058]
[1747331341230,6.83606094,104090.0,104080.0,0.02017058]
[1747331341451,6.85059674,104090.0,104080.0,0.02017058]
[1747331341781,6.75328734,104090.0,104080.0,0.02017058]
[1747331342148,6.75324734,104090.0,104080.0,0.02017058]
[1747331343138,6.77331154,104090.0,104080.0,0.00207058]
[1747331343343,6.88761534,104090.0,104080.0,0.00207058]
[1747331343544,6.96812474,104090.0,104080.0,0.00207058]
[1747331343963,6.96808474,104090.0,104080.0,0.00207058]
[1747331344091,6.95028474,104090.0,104080.0,0.00207058]
[1747331345594,6.85297534,104090.0,104080.0,0.00207058]
[1747331346226,6.86765674,104090.0,104080.0,0.00207058]
[1747331346901,6.91729759,104090.0,104080.0,0.00207058]
[1747331353414,6.91529759,104090.0,104080.0,0.00207058]
[1747331353625,7.25779645,104090.0,104080.0,0.00207058]
[1747331353831,7.36510585,104090.0,104080.0,0.00207058]
[1747331354094,0.58579552,104070.0,104060.0,0.002]
[1747331354286,6.77362264,104070.0,104060.0,0.00214405]
[1747331354491,6.78415483,104070.0,104060.0,0.00214405]
[1747331355294,6.86774364,104070.0,104060.0,0.00214405]
[1747331355726,6.86774364,104070.0,104060.0,0.00314405]
[1747331355930,6.78415483,104070.0,104060.0,0.00314405]
[1747331356102,6.80175483,104070.0,104060.0,0.00314405]
[1747331358179,7.24145568,104070.0,104060.0,0.00314405]
[1747331358382,7.25145568,104070.0,104060.0,0.00296738]
[1747331359776,0.56803615,104050.0,104040.0,0.002]
[1747331359983,0.56803615,104050.0,104040.0,0.00204789]
[1747331359984,6.4682566,104050.0,104040.0,0.00204789]
[1747331360722,6.4502566,104050.0,104040.0,0.00204789]
[1747331360953,6.4336566,104050.0,104040.0,0.00204789]
[1747331361356,6.40672441,104050.0,104040.0,0.00204789]
[1747331362660,6.03124441,104050.0,104040.0,0.00204789]
[1747331362859,6.40676441,104050.0,104040.0,0.01994789]
[1747331363485,6.40676441,104050.0,104040.0,0.00204789]
[1747331363687,6.40676441,104050.0,104040.0,0.01994789]
[1747331364707,6.03124441,104050.0,104040.0,0.01994789]
[1747331364934,6.40676441,104050.0,104040.0,0.01994789]
[1747331365732,6.21904441,104050.0,104040.0,0.01994789]
[1747331365931,6.40676441,104050.0,104040.0,0.01994789]
[1747331366157,6.40676441,104050.0,104040.0,0.01934789]
[1747331366539,6.50407381,104050.0,104040.0,0.01934789]
[1747331366724,6.40676441,104050.0,104040.0,0.01934789]
[1747331366914,6.40676441,104050.0,104040.0,0.00204789]
[1747331367354,6.42616441,104050.0,104040.0,0.00204789]
[1747331370531,6.05064441,104050.0,104040.0,0.00204789]
[1747331370678,6.42612441,104050.0,104040.0,0.00204789]
[1747331371069,6.43898451,104050.0,104040.0,0.00204789]
[1747331371523,6.45588451,104050.0,104040.0,0.00204789]
[1747331372544,6.49732536,104050.0,104040.0,0.00204789]
[1747331373450,6.60161982,104050.0,104040.0,0.00204789]
[1747331374827,6.31198221,104050.0,104040.0,0.00204789]
[1747331377342,6.31398221,104050.0,104040.0,0.00204789]
[1747331377542,6.33058221,104050.0,104040.0,0.00204789]
[1747331377843,6.33158221,104050.0,104040.0,0.00204789]
[1747331378065,6.56747887,104050.0,104040.0,0.00204789]
[1747331378262,6.61527767,104050.0,104040.0,0.00204789]
[1747331379887,6.59777767,104050.0,104040.0,0.00204789]
[1747331380086,6.58117767,104050.0,104040.0,0.00204789]
[1747331380406,6.36278101,104050.0,104040.0,0.00204789]
[1747331380608,6.61667767,104050.0,104040.0,0.00204789]
[1747331381491,6.56887887,104050.0,104040.0,0.00204789]
[1747331382181,6.58341972,104050.0,104040.0,0.00204789]
[1747331386438,6.61036779,104050.0,104040.0,0.00204789]
[1747331386795,7.02568779,104050.0,104040.0,0.00204789]
[1747331390046,7.03568779,104050.0,104040.0,0.00204789]
[1747331390360,7.13299719,104050.0,104040.0,0.00204789]
[1747331390998,0.55147679,104030.0,104020.0,0.002]
[1747331391170,1.46073951,104030.0,104020.0,0.00214408]
[1747331391427,1.24234285,104030.0,104020.0,0.00214408]
[1747331391847,1.24234285,104030.0,104020.0,0.02004408]
[1747331392219,1.26934699,104030.0,104020.0,0.02204408]
[1747331392664,1.26934699,104030.0,104020.0,0.02404408]
[1747331392847,1.18141244,104030.0,104020.0,0.04144408]
[1747331392988,0.7792883,104030.0,104020.0,0.04144408]
[1747331393189,1.1544083,104030.0,104020.0,0.04144408]
[1747331393629,1.19203884,104030.0,104020.0,0.04144408]
[1747331393829,1.21905225,104030.0,104020.0,0.02204408]
[1747331394397,1.21905225,104030.0,104020.0,0.03974408]
[1747331394758,1.23359489,104030.0,104020.0,0.03974408]
[1747331394956,1.23359489,104030.0,104020.0,0.03774408]
[1747331397434,1.20658148,104030.0,104020.0,0.02004408]
[1747331397650,1.23065913,104030.0,104020.0,0.00214408]
[1747331397862,1.32796853,104030.0,104020.0,0.00214408]
[1747331398048,6.37796853,104030.0,104020.0,0.00214408]
[1747331398750,6.59636519,104030.0,104020.0,0.00214408]
[1747331398989,6.69367459,104030.0,104020.0,0.00214408]
[1747331399638,6.59636519,104030.0,104020.0,0.00214408]
[1747331400776,6.37796853,104030.0,104020.0,0.00214408]
[1747331400997,6.59636519,104030.0,104020.0,0.00214408]
[1747331401750,6.34326853,104030.0,104020.0,0.00214408]
[1747331403044,5.96814853,104030.0,104020.0,0.00214408]
[1747331403215,6.34326853,104030.0,104020.0,0.00214408]
[1747331403376,6.36286853,104030.0,104020.0,0.00214408]
[1747331404051,6.36286853,104030.0,104020.0,0.00205577]
[1747331405321,6.38076853,104030.0,104020.0,0.00205577]
[1747331405516,6.59916519,104030.0,104020.0,0.00205577]
[1747331405926,6.61696519,104030.0,104020.0,0.00205577]
[1747331411020,6.61664519,104030.0,104020.0,0.00205577]
[1747331412059,6.59884519,104030.0,104020.0,0.00205577]
[1747331414271,6.58094519,104030.0,104020.0,0.00205577]
[1747331414478,5.98774853,104030.0,104020.0,0.00205577]
[1747331414692,1.38519428,104030.0,104020.0,0.03725577]
[1747331414891,1.01039428,104030.0,104020.0,0.03725577]
[1747331415205,1.60359094,104030.0,104020.0,0.03725577]
[1747331415424,1.19779428,104030.0,104020.0,0.03725577]
[1747331415604,1.60359094,104030.0,104020.0,0.03725577]
[1747331416408,0.59503428,104030.0,104020.0,0.03725577]
[1747331416690,0.94081943,104030.0,104020.0,0.03725577]
[1747331417292,0.95034035,104030.0,104020.0,0.03725577]
[1747331417711,0.94081943,104030.0,104020.0,0.03725577]
[1747331418186,0.94077943,104030.0,104020.0,0.03725577]
[1747331418837,0.56601943,104030.0,104020.0,0.23913992]
[1747331419044,0.92155487,104030.0,104020.0,0.03725577]
[1747331419492,0.93116729,104030.0,104020.0,0.23913992]
[1747331419717,0.93116729,104030.0,104020.0,0.24875327]
[1747331419928,0.93116729,104030.0,104020.0,0.23913992]
[1747331420127,0.93116729,104030.0,104020.0,0.03925577]
[1747331420372,0.93116729,104030.0,104020.0,0.04125577]
[1747331420664,0.93116729,104030.0,104020.0,0.24314001]
[1747331420807,0.55640729,104030.0,104020.0,0.3596761]
[1747331421010,0.55640729,104030.0,104020.0,0.35006285]
[1747331421223,0.54186465,104030.0,104020.0,0.1481787]
[1747331422820,0.54064291,104030.0,104020.0,0.1481787]
[1747331423452,0.5382579,104030.0,104020.0,0.13856517]
[1747331424041,0.53349235,104030.0,104020.0,0.13856517]
[1747331424526,0.75188901,104030.0,104020.0,0.04125577]
[1747331424730,0.74231466,104030.0,104020.0,0.04125577]
[1747331425319,0.74231466,104030.0,104020.0,0.02375577]
[1747331426326,0.74231466,104030.0,104020.0,0.02492308]
[1747331427467,0.75649303,104030.0,104020.0,0.02492308]
[1747331428264,0.75649303,104030.0,104020.0,0.00722308]
[1747331428469,0.77379303,104030.0,104020.0,0.00722308]
[1747331429044,0.75649303,104030.0,104020.0,0.00722308]